fUSD/lending_fUSD_20240905
["ID","MTS","AMOUNT","RATE_DAILY","PERIOD"]
[337251557,1725551434293,-500.0,0.00014885,2]
[337251558,1725551434303,-500.0,0.00014885,2]
[337251559,1725551434312,-500.0,0.00014885,2]
[337251560,1725551434324,-500.0,0.00014885,2]
[337251561,1725551434338,-500.0,0.00014885,2]
[337251562,1725551434348,-500.0,0.00014885,2]
[337251563,1725551434358,-500.0,0.00014885,2]
[337251564,1725551434370,-500.0,0.00014885,2]
[337251565,1725551434381,-500.0,0.00014885,2]
[337251566,1725551434391,-500.0,0.00014885,2]
[337251567,1725551434402,-500.0,0.00014885,2]
[337251568,1725551434412,-500.0,0.00014885,2]
[337251569,1725551434423,-500.0,0.00014885,2]
[337251570,1725551434433,-500.0,0.00014885,2]
[337251571,1725551434443,-500.0,0.00014885,2]
[337251572,1725551434453,-500.0,0.00014885,2]
[337251573,1725551434464,-500.0,0.00014885,2]
[337251574,1725551434473,-500.0,0.00014885,2]
[337251575,1725551434484,-500.0,0.00014885,2]
[337251576,1725551434494,-500.0,0.00014885,2]
[337251577,1725551434504,-500.0,0.00014885,2]
[337251578,1725551434514,-500.0,0.00014885,2]
[337251579,1725551434524,-493.45456236,0.00014885,2]
[337251580,1725551434534,-500.0,0.00014885,2]
[337251581,1725551434544,-500.0,0.00014885,2]
[337251582,1725551434554,-500.0,0.00014885,2]
[337251583,1725551434564,-500.0,0.00014885,2]
[337251584,1725551434574,-500.0,0.00014885,2]
[337251585,1725551434586,-500.0,0.00014885,2]
[337251586,1725551434596,-500.0,0.00014885,2]
[337251587,1725551434606,-334.93317189,0.00014885,2]
[337251588,1725551434616,-500.0,0.00014885,2]
[337251589,1725551434626,-503.07265322,0.00014885,2]
[337251590,1725551434636,-500.0,0.00014885,2]
[337251591,1725551434647,-500.0,0.00014885,2]
[337251592,1725551434657,-500.0,0.00014885,2]
[337251593,1725551434668,-594.04182639,0.00014885,2]
[337251594,1725551434678,-500.0,0.00014885,2]
[337251595,1725551434688,-500.0,0.00014885,2]
[337251596,1725551434699,-500.0,0.00014885,2]
[337251597,1725551434709,-500.0,0.00014885,2]
[337251598,1725551434718,-500.0,0.00014885,2]
[337251599,1725551434728,-500.0,0.00014885,2]
[337251600,1725551434738,-500.0,0.00014885,2]
[337251601,1725551434748,-500.0,0.00014885,2]
[337251602,1725551434758,-500.0,0.00014885,2]
[337251603,1725551434768,-500.0,0.00014885,2]
[337251604,1725551434778,-500.0,0.00014885,2]
[337251605,1725551434788,-500.0,0.00014885,2]
[337251606,1725551434797,-500.0,0.00014885,2]
[337251607,1725551434808,-500.0,0.00014885,2]
[337251608,1725551434818,-500.0,0.00014885,2]
[337251609,1725551434827,-500.0,0.00014885,2]
[337251610,1725551434838,-500.0,0.00014885,2]
[337251611,1725551434849,-500.0,0.00014885,2]
[337251612,1725551434859,-500.0,0.00014885,2]
[337251613,1725551434869,-500.0,0.00014885,2]
[337251614,1725551434879,-500.0,0.00014885,2]
[337251615,1725551434889,-620.53,0.00014885,2]
[337251616,1725551434899,-500.0,0.00014885,2]
[337251617,1725551434909,-663.92,0.00014885,2]
[337251618,1725551434918,-500.0,0.00014885,2]
[337251619,1725551434928,-1028.63,0.00014885,2]
[337251620,1725551434938,-500.0,0.00014885,2]
[337251621,1725551434948,-500.0,0.00014885,2]
[337251622,1725551434959,-2917.4,0.00014885,2]
[337251623,1725551434968,-500.0,0.00014885,2]
[337251624,1725551434979,-500.0,0.00014885,2]
[337251625,1725551434988,-500.0,0.00014885,2]
[337251626,1725551434998,-500.0,0.00014885,2]
[337251627,1725551435007,-500.0,0.00014885,2]
[337251628,1725551435017,-1515.54,0.00014885,2]
[337251629,1725551435027,-500.0,0.00014885,2]
[337251630,1725551435037,-1610.22,0.00014885,2]
[337251631,1725551435047,-1000.0,0.00014885,2]
[337251632,1725551435056,-1788.74,0.00014885,2]
[337251633,1725551435067,-500.0,0.00014885,2]
[337251634,1725551435076,-500.0,0.00014885,2]
[337251635,1725551435087,-500.0,0.00014885,2]
[337251636,1725551435096,-500.0,0.00014885,2]
[337251637,1725551435106,-834.65,0.00014885,2]
[337251638,1725551435115,-500.0,0.00014885,2]
[337251639,1725551435125,-500.0,0.00014885,2]
[337251640,1725551435135,-500.0,0.00014885,2]
[337251641,1725551435145,-500.0,0.00014885,2]
[337251642,1725551435154,-858.1,0.00014885,2]
[337251643,1725551435165,-500.0,0.00014885,2]
[337251644,1725551435174,-618.75400582,0.00014885,2]
[337251645,1725551435184,-500.0,0.00014885,2]
[337251646,1725551435194,-500.0,0.00014885,2]
[337251647,1725551435204,-746.61,0.00014885,2]
[337251648,1725551435213,-500.0,0.00014885,2]
[337251649,1725551435223,-972.33,0.00014885,2]
[337251650,1725551435233,-500.0,0.00014885,2]
[337251651,1725551435243,-500.0,0.00014885,2]
[337251652,1725551435253,-500.0,0.00014885,2]
[337251653,1725551435263,-500.0,0.00014885,2]
[337251654,1725551435273,-500.0,0.00014885,2]
[337251655,1725551435282,-2048.88,0.00014885,2]
[337251656,1725551435292,-500.0,0.00014885,2]
[337251657,1725551435302,-1009.46,0.00014885,2]
[337251658,1725551435312,-500.0,0.00014885,2]
[337251659,1725551435325,-740.14,0.00014885,2]
[337251660,1725551435336,-1828.5,0.00014885,2]
[337251661,1725551435346,-500.0,0.00014885,2]
[337251662,1725551435356,-4954.17,0.00014885,2]
[337251663,1725551435366,-512.72,0.00014885,2]
[337251664,1725551435375,-509.65,0.00014885,2]
[337251665,1725551435385,-7475.39,0.00014885,2]
[337251666,1725551435394,-1910.06,0.00014885,2]
[337251667,1725551435405,-584.81,0.00014885,2]
[337251668,1725551435419,-500.0,0.00014885,2]
[337251669,1725551435428,-500.0,0.00014885,2]
[337251670,1725551435437,-500.0,0.00014885,2]
[337251671,1725551435446,-500.0,0.00014885,2]
[337251672,1725551435456,-500.0,0.00014885,2]
[337251673,1725551435465,-500.0,0.00014886,2]
[337251674,1725551435475,-500.0,0.00014886,2]
[337251675,1725551435484,-500.0,0.00014886,2]
[337251676,1725551435495,-645.7916423,0.00014886,2]
[337251677,1725551435504,-500.0,0.00014886,2]
[337251678,1725551435514,-500.0,0.00014886,2]
[337251679,1725551435523,-488.0486747,0.00014886,2]
[337251680,1725551435533,-500.0,0.00014886,2]
[337251681,1725551435542,-500.0,0.00014886,2]
[337251682,1725551435552,-500.0,0.00014886,2]
[337251683,1725551435562,-317.70376858,0.00014886,2]
[337251684,1725551435571,-511.38806538,0.00014886,2]
[337251685,1725551435581,-500.0,0.00014886,2]
[337251686,1725551435593,-500.0,0.00014886,2]
[337251687,1725551435603,-500.0,0.00014886,2]
[337251688,1725551435612,-439.21563108,0.00014886,2]
[337251689,1725551435622,-500.0,0.00014886,2]
[337251690,1725551435631,-500.0,0.00014886,2]
[337251691,1725551435640,-500.0,0.00014886,2]
[337251692,1725551435650,-500.0,0.00014886,2]
[337251693,1725551435659,-500.0,0.00014886,2]
[337251694,1725551435669,-500.25294956,0.00014886,2]
[337251695,1725551435678,-500.0,0.00014886,2]
[337251696,1725551435688,-500.0,0.00014886,2]
[337251697,1725551435697,-500.0,0.00014886,2]
[337251698,1725551435707,-500.0,0.00014886,2]
[337251699,1725551435716,-500.0,0.00014886,2]
[337251700,1725551435726,-500.5181709,0.00014886,2]
[337251701,1725551435736,-500.0,0.00014886,2]
[337251702,1725551435745,-504.57156488,0.00014886,2]
[337251703,1725551435755,-500.0,0.00014886,2]
[337251704,1725551435764,-500.0,0.00014886,2]
[337251705,1725551435774,-500.0,0.00014886,2]
[337251706,1725551435783,-500.0,0.00014886,2]
[337251707,1725551435793,-500.0,0.00014886,2]
[337251708,1725551435803,-500.0,0.00014886,2]
[337251709,1725551435812,-500.0,0.00014886,2]
[337251710,1725551435822,-500.0,0.00014886,2]
[337251711,1725551435832,-500.0,0.00014886,2]
[337251712,1725551435852,-500.0,0.00014886,2]
[337251713,1725551435861,-2229.26,0.00014886,2]
[337251714,1725551435871,-531.14077404,0.00014886,2]
[337251715,1725551435881,-500.0,0.00014886,2]
[337251716,1725551435891,-745.48,0.00014886,2]
[337251717,1725551435900,-500.0,0.00014886,2]
[337251718,1725551435910,-500.0,0.00014886,2]
[337251719,1725551435921,-500.0,0.00014886,2]
[337251720,1725551435931,-500.0,0.00014886,2]
[337251721,1725551435942,-500.0,0.00014886,2]
[337251722,1725551435952,-500.0,0.00014886,2]
[337251723,1725551435962,-500.0,0.00014886,2]
[337251724,1725551435972,-2917.4,0.00014886,2]
[337251725,1725551435982,-500.0,0.00014886,2]
[337251726,1725551435993,-13080.47,0.00014886,2]
[337251727,1725551436003,-500.0,0.00014886,2]
[337251728,1725551436013,-445.342214,0.00014886,2]
[337251729,1725551436023,-550.26843595,0.00014886,2]
[337251730,1725551436033,-988.35,0.00014886,2]
[337251731,1725551436043,-1069.832771,0.00014886,2]
[337251732,1725551436053,-500.0,0.00014886,2]
[337251733,1725551436063,-1515.54,0.00014886,2]
[337251734,1725551436072,-500.0,0.00014886,2]
[337251735,1725551436082,-933.57,0.00014886,2]
[337251736,1725551436095,-1610.22,0.00014886,2]
[337251737,1725551436106,-1788.74,0.00014886,2]
[337251738,1725551436116,-500.0,0.00014886,2]
[337251739,1725551436126,-500.0,0.00014886,2]
[337251740,1725551436136,-500.0,0.00014886,2]
[337251741,1725551436145,-500.0,0.00014886,2]
[337251742,1725551436155,-599.07,0.00014886,2]
[337251743,1725551436164,-543.6,0.00014886,2]
[337251744,1725551436174,-500.0,0.00014886,2]
[337251745,1725551436184,-500.0,0.00014886,2]
[337251746,1725551436194,-500.0,0.00014886,2]
[337251747,1725551436205,-500.0,0.00014886,2]
[337251748,1725551436215,-2215.33,0.00014886,2]
[337251749,1725551436224,-500.0,0.00014886,2]
[337251750,1725551436234,-1524.28,0.00014886,2]
[337251751,1725551436244,-500.0,0.00014886,2]
[337251752,1725551436254,-698.38,0.00014886,2]
[337251753,1725551436263,-746.61,0.00014886,2]
[337251754,1725551436272,-500.0,0.00014886,2]
[337251755,1725551436282,-500.0,0.00014886,2]
[337251756,1725551436292,-1625.4,0.00014886,2]
[337251757,1725551436301,-1404.94,0.00014886,2]
[337251758,1725551436311,-972.33,0.00014886,2]
[337251759,1725551436323,-525.35,0.00014886,2]
[337251760,1725551436337,-500.0,0.00014886,2]
[337251761,1725551436347,-500.0,0.00014886,2]
[337251762,1725551436357,-500.0,0.00014886,2]
[337251763,1725551436367,-500.0,0.00014886,2]
[337251764,1725551436376,-500.0,0.00014886,2]
[337251765,1725551436386,-500.0,0.00014886,2]
[337251766,1725551436397,-500.0,0.00014886,2]
[337251767,1725551436407,-627.43,0.00014886,2]
[337251768,1725551436417,-500.0,0.00014886,2]
[337251769,1725551436426,-711.98,0.00014886,2]
[337251770,1725551436436,-701.11,0.00014886,2]
[337251771,1725551436445,-672.59,0.00014886,2]
[337251772,1725551436454,-502.8440376,0.00014886,2]
[337251773,1725551436463,-500.0,0.00014886,2]
[337251774,1725551436473,-500.0,0.00014886,2]
[337251775,1725551436482,-500.0,0.00014886,2]
[337251776,1725551436492,-2048.88,0.00014886,2]
[337251777,1725551436501,-3828.91,0.00014886,2]
[337251778,1725551436511,-500.71092004,0.00014886,2]
[337251779,1725551436520,-500.0,0.00014886,2]
[337251780,1725551436530,-1465.98,0.00014886,2]
[337251781,1725551436539,-506.25644859,0.00014886,2]
[337251782,1725551436549,-1276.06,0.00014886,2]
[337251783,1725551436559,-500.0,0.00014886,2]
[337251784,1725551436568,-1009.46,0.00014886,2]
[337251785,1725551436577,-500.0,0.00014886,2]
[337251786,1725551436587,-1933.04,0.00014886,2]
[337251787,1725551436596,-500.0,0.00014886,2]
[337251788,1725551436606,-1634.95,0.00014886,2]
[337251789,1725551436615,-740.14,0.00014886,2]
[337251790,1725551436624,-500.0,0.00014886,2]
[337251791,1725551436634,-1828.5,0.00014886,2]
[337251792,1725551436644,-1998.07,0.00014886,2]
[337251793,1725551436694,-500.0,0.00014886,2]
[337251794,1725551436705,-500.0,0.00014886,2]
[337251795,1725551436715,-2212.42,0.00014886,2]
[337251796,1725551436724,-500.0,0.00014886,2]
[337251797,1725551436733,-549.2,0.00014886,2]
[337251798,1725551436742,-4954.17,0.00014886,2]
[337251799,1725551436751,-500.0,0.00014886,2]
[337251800,1725551436761,-2488.99,0.00014886,2]
[337251801,1725551436770,-500.0,0.00014886,2]
[337251802,1725551436782,-500.0,0.00014886,2]
[337251803,1725551436793,-926.67,0.00014886,2]
[337251804,1725551436803,-509.65,0.00014886,2]
[337251805,1725551436814,-500.0,0.00014886,2]
[337251806,1725551436824,-3556.36,0.00014886,2]
[337251807,1725551436833,-500.0,0.00014886,2]
[337251808,1725551436843,-500.0,0.00014886,2]
[337251809,1725551436852,-7609.17,0.00014886,2]
[337251810,1725551436862,-7475.39,0.00014886,2]
[337251811,1725551436871,-500.0,0.00014886,2]
[337251812,1725551436880,-500.0,0.00014886,2]
[337251813,1725551436890,-1910.06,0.00014886,2]
[337251814,1725551436899,-500.0,0.00014886,2]
[337251815,1725551436909,-500.0,0.00014886,2]
[337251816,1725551436919,-500.0,0.00014886,2]
[337251817,1725551436928,-500.0,0.00014886,2]
[337251818,1725551436938,-736.28,0.00014886,2]
[337251819,1725551436947,-500.0,0.00014886,2]
[337251820,1725551436957,-1476.63,0.00014886,2]
[337251821,1725551436967,-500.0,0.00014886,2]
[337251822,1725551436976,-500.0,0.00014886,2]
[337251823,1725551436986,-5208.33,0.00014886,2]
[337251824,1725551436996,-669.39,0.00014886,2]
[337251825,1725551437005,-500.0,0.00014886,2]
[337251826,1725551437014,-802.11,0.00014886,2]
[337251827,1725551437023,-500.0,0.00014886,2]
[337251828,1725551437033,-500.0,0.00014887,2]
[337251829,1725551437043,-1184.76,0.00014887,2]
[337251830,1725551437052,-500.0,0.00014887,2]
[337251831,1725551437062,-500.0,0.00014887,2]
[337251832,1725551437071,-500.0,0.00014887,2]
[337251833,1725551437081,-500.0,0.00014887,2]
[337251834,1725551437092,-500.0,0.00014887,2]
[337251835,1725551437102,-500.0,0.00014887,2]
[337251836,1725551437111,-500.0,0.00014887,2]
[337251837,1725551437121,-500.0,0.00014887,2]
[337251838,1725551437130,-500.0,0.00014887,2]
[337251839,1725551437141,-454.27772581,0.00014887,2]
[337251840,1725551437151,-500.0,0.00014887,2]
[337251841,1725551437160,-500.0,0.00014887,2]
[337251842,1725551437169,-500.0,0.00014887,2]
[337251843,1725551437179,-500.0,0.00014887,2]
[337251844,1725551437188,-500.0,0.00014887,2]
[337251845,1725551437197,-500.0,0.00014887,2]
[337251846,1725551437207,-500.0,0.00014887,2]
[337251847,1725551437216,-500.0,0.00014887,2]
[337251848,1725551437225,-500.0,0.00014887,2]
[337251849,1725551437234,-515.8,0.00014887,2]
[337251850,1725551437243,-500.0,0.00014887,2]
[337251851,1725551437253,-411.11,0.00014887,2]
[337251852,1725551437263,-317.23411328,0.00014887,2]
[337251853,1725551437272,-500.0,0.00014887,2]
[337251854,1725551437281,-150.0,0.00014887,2]
[337251855,1725551437291,-500.0,0.00014887,2]
[337251856,1725551437299,-500.0,0.00014887,2]
[337251857,1725551437309,-504.15478256,0.00014887,2]
[337251858,1725551437318,-500.0,0.00014887,2]
[337251859,1725551437331,-292.51,0.00014887,2]
[337251860,1725551437343,-500.0,0.00014887,2]
[337251861,1725551437353,-500.0,0.00014887,2]
[337251862,1725551437362,-500.0,0.00014887,2]
[337251863,1725551437373,-500.0,0.00014887,2]
[337251864,1725551437383,-500.0,0.00014887,2]
[337251865,1725551437392,-500.0,0.00014887,2]
[337251866,1725551437402,-500.0,0.00014887,2]
[337251867,1725551437412,-151.48,0.00014887,2]
[337251868,1725551437421,-500.0,0.00014887,2]
[337251869,1725551437431,-500.0,0.00014887,2]
[337251870,1725551437440,-500.0,0.00014887,2]
[337251871,1725551437449,-500.0,0.00014887,2]
[337251872,1725551437458,-500.0,0.00014887,2]
[337251873,1725551437467,-500.0,0.00014887,2]
[337251874,1725551437476,-500.0,0.00014887,2]
[337251875,1725551437485,-500.0,0.00014887,2]
[337251876,1725551437495,-500.0,0.00014887,2]
[337251877,1725551437503,-500.0,0.00014887,2]
[337251878,1725551437512,-500.0,0.00014887,2]
[337251879,1725551437522,-537.93,0.00014887,2]
[337251880,1725551437531,-369.64,0.00014887,2]
[337251881,1725551437540,-500.0,0.00014887,2]
[337251882,1725551437549,-500.0,0.00014887,2]
[337251883,1725551437558,-500.0,0.00014887,2]
[337251884,1725551437567,-366.07,0.00014887,2]
[337251885,1725551437576,-500.0,0.00014887,2]
[337251886,1725551437588,-609.6356171,0.00014887,2]
[337251887,1725551437597,-500.0,0.00014887,2]
[337251888,1725551437606,-500.0,0.00014887,2]
[337251889,1725551437615,-500.0,0.00014887,2]
[337251890,1725551437625,-500.0,0.00014887,2]
[337251891,1725551437635,-500.0,0.00014887,2]
[337251892,1725551437644,-500.0,0.00014887,2]
[337251893,1725551437654,-526.42,0.00014887,2]
[337251894,1725551437663,-373.57,0.00014887,2]
[337251895,1725551437673,-500.0,0.00014887,2]
[337251898,1725551437682,-2229.26,0.00014887,2]
[337251900,1725551437692,-500.0,0.00014887,2]
[337251902,1725551437701,-745.48,0.00014887,2]
[337251904,1725551437711,-663.92,0.00014887,2]
[337251905,1725551437720,-500.0,0.00014887,2]
[337251907,1725551437730,-1028.63,0.00014887,2]
[337251908,1725551437739,-500.0,0.00014887,2]
[337251909,1725551437749,-500.0,0.00014887,2]
[337251910,1725551437758,-500.0,0.00014887,2]
[337251911,1725551437768,-500.0,0.00014887,2]
[337251913,1725551437779,-500.0,0.00014887,2]
[337251915,1725551437788,-500.0,0.00014887,2]
[337251916,1725551437798,-574.44,0.00014887,2]
[337251918,1725551437807,-500.0,0.00014887,2]
[337251920,1725551437816,-933.57,0.00014887,2]
[337251922,1725551437826,-500.0,0.00014887,2]
[337251924,1725551437837,-1016.17651197,0.00014887,2]
[337251925,1725551437846,-500.0,0.00014887,2]
[337251926,1725551437857,-500.0,0.00014887,2]
[337251927,1725551437867,-365.68361367,0.00014887,2]
[337251928,1725551437876,-834.65,0.00014887,2]
[337251929,1725551437886,-500.0,0.00014887,2]
[337251930,1725551437895,-599.07,0.00014887,2]
[337251931,1725551437904,-500.0,0.00014887,2]
[337251932,1725551437914,-470.0,0.00014887,2]
[337251933,1725551437924,-500.0,0.00014887,2]
[337251934,1725551437933,-641.01,0.00014887,2]
[337251935,1725551437943,-500.0,0.00014887,2]
[337251936,1725551437952,-500.0,0.00014887,2]
[337251937,1725551437962,-525.35,0.00014887,2]
[337251938,1725551437971,-500.0,0.00014887,2]
[337251939,1725551437981,-500.0,0.00014887,2]
[337251940,1725551437991,-500.0,0.00014887,2]
[337251941,1725551438000,-500.0,0.00014887,2]
[337251942,1725551438009,-500.0,0.00014887,2]
[337251943,1725551438019,-711.98,0.00014887,2]
[337251944,1725551438028,-500.0,0.00014887,2]
[337251945,1725551438038,-500.0,0.00014887,2]
[337251946,1725551438047,-225.22,0.00014887,2]
[337251947,1725551438056,-500.0,0.00014887,2]
[337251948,1725551438066,-500.0,0.00014887,2]
[337251949,1725551438075,-500.0,0.00014887,2]
[337251950,1725551438084,-500.0,0.00014887,2]
[337251951,1725551438094,-500.0,0.00014887,2]
[337251952,1725551438103,-500.0,0.00014887,2]
[337251953,1725551438113,-184.21,0.00014887,2]
[337251954,1725551438122,-509.95,0.00014887,2]
[337251955,1725551438132,-632.29,0.00014887,2]
[337251956,1725551438142,-352.13,0.00014887,2]
[337251957,1725551438151,-584.81,0.00014887,2]
[337251958,1725551438160,-500.0,0.00014887,2]
[337251959,1725551438169,-5208.33,0.00014887,2]
[337251960,1725551438179,-802.11,0.00014887,2]
[337251961,1725551438188,-500.0,0.00014888,2]
[337251962,1725551438197,-2229.26,0.00014888,2]
[337251963,1725551438206,-500.0,0.00014888,2]
[337251964,1725551438215,-500.0,0.00014888,2]
[337251965,1725551438224,-500.0,0.00014888,2]
[337251966,1725551438233,-500.0,0.00014888,2]
[337251967,1725551438243,-202.62310302,0.00014899,2]
[337251968,1725551438252,-202.623103,0.000149,2]
[337251969,1725551438263,-202.623103,0.000149,2]
[337251970,1725551438272,-468.0,0.000149,2]
[337251971,1725551438281,-150.0,0.00014921,2]
[337251973,1725551438291,-500.0,0.00014973,2]
[337251974,1725551438300,-150.0,0.00014986,2]
[337251975,1725551438310,-150.0,0.00014986,2]
[337251976,1725551438322,-393.387322,0.00014992,2]
[337251977,1725551438336,-2215.33,0.00014993,2]
[337251978,1725551438346,-1524.28,0.00014993,2]
[337251979,1725551438356,-1625.4,0.00014993,2]
[337251980,1725551438366,-1404.94,0.00014993,2]
[337251981,1725551438377,-500.0,0.00014993,2]
[337251982,1725551438386,-500.0,0.00014993,2]
[337251983,1725551438402,-500.0,0.00014993,2]
[337251984,1725551438412,-627.43,0.00014993,2]
[337251985,1725551438422,-672.59,0.00014993,2]
[337251986,1725551438432,-500.0,0.00014993,2]
[337251987,1725551438441,-3828.91,0.00014993,2]
[337251988,1725551438451,-1465.98,0.00014993,2]
[337251989,1725551438461,-1276.06,0.00014993,2]
[337251990,1725551438470,-1933.04,0.00014993,2]
[337251991,1725551438480,-1634.95,0.00014993,2]
[337251992,1725551438489,-1998.07,0.00014993,2]
[337251993,1725551438499,-2212.42,0.00014993,2]
[337251994,1725551438508,-2488.99,0.00014993,2]
[337251995,1725551438518,-926.67,0.00014993,2]
[337251996,1725551438527,-3556.36,0.00014993,2]
[337251997,1725551438536,-7609.17,0.00014993,2]
[337251998,1725551438546,-1476.63,0.00014993,2]
[337251999,1725551438556,-500.0,0.00014993,2]
[337252000,1725551438565,-500.0,0.00014993,2]
[337252001,1725551438575,-500.0,0.00014993,2]
[337252002,1725551438584,-1184.76,0.00014994,2]
[337252003,1725551438597,-500.0,0.00014994,2]
[337252004,1725551438607,-500.0,0.00014994,2]
[337252005,1725551438616,-500.0,0.00014994,2]
[337252006,1725551438625,-500.0,0.00014994,2]
[337252007,1725551438635,-500.0,0.00014994,2]
[337252008,1725551438644,-500.0,0.00014994,2]
[337252009,1725551438654,-500.0,0.00014994,2]
[337252010,1725551438663,-500.0,0.00014994,2]
[337252011,1725551438673,-500.0,0.00014994,2]
[337252012,1725551438682,-253.34,0.00014994,2]
[337252013,1725551438692,-500.0,0.00014994,2]
[337252014,1725551438701,-500.0,0.00014994,2]
[337252015,1725551438711,-500.0,0.00014994,2]
[337252016,1725551438721,-500.0,0.00014994,2]
[337252017,1725551438731,-500.0,0.00014994,2]
[337252018,1725551438740,-500.0,0.00014994,2]
[337252019,1725551438749,-500.0,0.00014994,2]
[337252020,1725551438759,-500.0,0.00014994,2]
[337252021,1725551438768,-500.0,0.00014994,2]
[337252022,1725551438778,-500.0,0.00014994,2]
[337252023,1725551438788,-454.1,0.00014994,2]
[337252024,1725551438797,-500.0,0.00014994,2]
[337252025,1725551438807,-500.0,0.00014994,2]
[337252026,1725551438816,-500.0,0.00014994,2]
[337252027,1725551438826,-500.0,0.00014994,2]
[337252028,1725551438836,-500.0,0.00014994,2]
[337252029,1725551438845,-500.0,0.00014994,2]
[337252030,1725551438855,-500.0,0.00014994,2]
[337252031,1725551438865,-500.0,0.00014994,2]
[337252032,1725551438874,-500.0,0.00014994,2]
[337252033,1725551438883,-500.0,0.00014994,2]
[337252034,1725551438893,-500.0,0.00014994,2]
[337252035,1725551438903,-500.0,0.00014994,2]
[337252036,1725551438912,-637.67,0.00014994,2]
[337252037,1725551438922,-500.0,0.00014994,2]
[337252038,1725551438931,-663.92,0.00014994,2]
[337252039,1725551438941,-500.0,0.00014994,2]
[337252040,1725551438950,-1028.63,0.00014994,2]
[337252041,1725551438960,-500.0,0.00014994,2]
[337252042,1725551438970,-2917.4,0.00014994,2]
[337252043,1725551438979,-500.0,0.00014994,2]
[337252044,1725551438989,-500.0,0.00014994,2]
[337252045,1725551438998,-13080.47,0.00014994,2]
[337252046,1725551439008,-500.0,0.00014994,2]
[337252047,1725551439017,-445.342214,0.00014994,2]
[337252048,1725551439027,-988.35,0.00014994,2]
[337252049,1725551439036,-1069.832771,0.00014994,2]
[337252050,1725551439046,-1515.54,0.00014994,2]
[337252051,1725551439056,-500.0,0.00014994,2]
[337252052,1725551439066,-1610.22,0.00014994,2]
[337252053,1725551439076,-1788.74,0.00014994,2]
[337252054,1725551439087,-834.65,0.00014994,2]
[337252055,1725551439097,-500.0,0.00014994,2]
[337252056,1725551439107,-500.0,0.00014994,2]
[337252057,1725551439116,-543.6,0.00014994,2]
[337252058,1725551439127,-500.0,0.00014994,2]
[337252059,1725551439136,-500.0,0.00014994,2]
[337252060,1725551439146,-500.0,0.00014994,2]
[337252061,1725551439156,-500.0,0.00014994,2]
[337252062,1725551439165,-698.38,0.00014994,2]
[337252063,1725551439175,-746.61,0.00014994,2]
[337252064,1725551439185,-972.33,0.00014994,2]
[337252065,1725551439195,-500.0,0.00014994,2]
[337252066,1725551439204,-500.0,0.00014994,2]
[337252067,1725551439214,-500.0,0.00014994,2]
[337252068,1725551439224,-500.0,0.00014994,2]
[337252069,1725551439234,-500.0,0.00014994,2]